fUSD/lending_fUSD_20250610
["ID","MTS","AMOUNT","RATE_DAILY","PERIOD"]
[365216227,1749539081140,-490.0,0.00016767,2]
[365216228,1749539081165,-904.57,0.00016767,2]
[365216229,1749539081188,-200.0,0.00016798,3]
[365216230,1749539081211,-1002.74,0.00016846,2]
[365216231,1749539081234,-168.0,0.00016856,2]
[365216232,1749539081257,-833.29909032,0.00016863,2]
[365216233,1749539081280,-151.0,0.00016931,2]
[365216234,1749539081303,-151.0,0.00016931,2]
[365216235,1749539081327,-151.0,0.00016931,2]
[365216236,1749539081350,-151.0,0.00016931,2]
[365216237,1749539081373,-151.0,0.00016931,2]
[365216238,1749539081396,-151.0,0.00016931,2]
[365216239,1749539081419,-151.0,0.00016931,2]
[365216240,1749539081442,-151.0,0.00016931,2]
[365216241,1749539081466,-151.0,0.00016931,2]
[365216242,1749539081490,-182.596802,0.00016931,2]
[365216243,1749539081513,-182.596802,0.00016931,2]
[365216244,1749539081536,-490.0,0.00016931,2]
[365216245,1749539081559,-359.94315587,0.00016931,2]
[365216246,1749539081588,-130.05684413,0.00016931,2]
[365216247,1749539081612,-490.0,0.00016931,2]
[365216248,1749539081639,-1156.16,0.00016931,2]
[365216249,1749539081663,-490.0,0.00016931,2]
[365216250,1749539081688,-490.0,0.00016931,2]
[365216251,1749539081714,-609.75,0.00016931,2]
[365216252,1749539081737,-490.0,0.00016931,2]
[365216253,1749539081761,-490.0,0.00016931,2]
[365216254,1749539081786,-490.0,0.00016931,2]
[365216255,1749539081809,-877.03,0.00016931,2]
[365216256,1749539081834,-490.0,0.00016931,2]
[365216257,1749539081864,-560.58,0.00016931,2]
[365216258,1749539081888,-592.82434851,0.00016931,2]
[365216259,1749539081915,-490.0,0.00016931,2]
[365216260,1749539081939,-440.0,0.00016931,2]
[365216261,1749539081964,-490.0,0.00016931,2]
[365216262,1749539081989,-954.34,0.00016931,2]
[365216263,1749539082014,-490.0,0.00016931,2]
[365216264,1749539082040,-595.17,0.00016931,2]
[365216265,1749539082064,-490.0,0.00016931,2]
[365216266,1749539082089,-910.82,0.00016931,2]
[365216267,1749539082114,-846.14,0.00016931,2]
[365216268,1749539082137,-490.0,0.00016931,2]
[365216269,1749539082161,-904.57,0.00016931,2]
[365216270,1749539082185,-4022.6171652,0.0001699,2]
[365216273,1749539093586,963.47,0.00016438,2]
[365216274,1749539093656,490.0,0.00016438,2]
[365216275,1749539093688,963.47,0.00016602,2]
[365216276,1749539093919,963.47,0.00016767,2]
[365216277,1749539093967,490.0,0.00016438,2]
[365216278,1749539094167,963.47,0.00016931,2]
[365216279,1749539094208,490.0,0.00016602,2]
[365216280,1749539094241,490.0,0.00016602,2]
[365216281,1749539094470,490.0,0.00016767,2]
[365216282,1749539094504,71.53104216,0.00016767,2]
[365216283,1749539094529,418.46895784,0.00016767,2]
[365216284,1749539094721,490.0,0.00016931,2]
[365216285,1749539094752,490.0,0.00016931,2]
[365216287,1749539107127,200.0,0.0001699,2]
[365216289,1749539109776,508.13,0.00016438,2]
[365216290,1749539110033,508.13,0.00016602,2]
[365216291,1749539110286,508.13,0.00016767,2]
[365216292,1749539110590,508.13,0.00016931,2]
[365216293,1749539111853,490.0,0.00016438,2]
[365216294,1749539112328,331.0,0.00016602,2]
[365216295,1749539114765,500.0,0.00014964,2]
[365216296,1749539116347,500.0,0.00016334,2]
[365216298,1749539119234,5643.9397,0.00016402,2]
[365216301,1749539125472,490.0,0.00016438,2]
[365216302,1749539125916,490.0,0.00016602,2]
[365216303,1749539126030,490.0,0.00016767,2]
[365216304,1749539126104,500.0,0.00016462,2]
[365216305,1749539126167,287.28600993,0.00016462,2]
[365216306,1749539126271,160.72015178,0.00016766,2]
[365216307,1749539126307,490.0,0.00016931,2]
[365216308,1749539128967,490.0,0.00016438,2]
[365216309,1749539129583,490.0,0.00016602,2]
[365216310,1749539129854,490.0,0.00016767,2]
[365216311,1749539130091,490.0,0.00016931,2]
[365216315,1749539141726,490.0,0.00016438,2]
[365216316,1749539142160,490.0,0.00016602,2]
[365216317,1749539142406,490.0,0.00016767,2]
[365216318,1749539145650,730.86,0.00016438,2]
[365216319,1749539145927,730.86,0.00016602,2]
[365216320,1749539146110,490.0,0.00016931,2]
[365216321,1749539146439,730.86,0.00016767,2]
[365216322,1749539146477,730.86,0.00016931,2]
[365216323,1749539148085,490.0,0.00016438,2]
[365216324,1749539148354,490.0,0.00016602,2]
[365216325,1749539148618,490.0,0.00016767,2]
[365216326,1749539148881,490.0,0.00016931,2]
[365216328,1749539159533,174.63835223,0.00016995,2]
[365216329,1749539159978,832.0,0.0002465,120]
[365216330,1749539164035,490.0,0.00016438,2]
[365216331,1749539164335,490.0,0.00016602,2]
[365216332,1749539164567,490.0,0.00016767,2]
[365216333,1749539169030,403.45622822,0.00016438,2]
[365216334,1749539169055,86.54377178,0.00016438,2]
[365216335,1749539169283,490.0,0.00016602,2]
[365216336,1749539169898,490.0,0.00016767,2]
[365216337,1749539170195,490.0,0.00016931,2]
[365216339,1749539173529,490.0,0.00016438,2]
[365216340,1749539173809,490.0,0.00016602,2]
[365216341,1749539174428,490.0,0.00016767,2]
[365216342,1749539174720,490.0,0.00016931,2]
[365216343,1749539180058,490.0,0.00016438,2]
[365216344,1749539180319,490.0,0.00016602,2]
[365216345,1749539180391,2500.0,0.00016402,2]
[365216346,1749539180565,490.0,0.00016767,2]
[365216347,1749539180817,490.0,0.00016931,2]
[365216348,1749539181425,795.28,0.00016438,2]
[365216349,1749539181691,795.28,0.00016602,2]
[365216350,1749539181958,795.28,0.00016767,2]
[365216351,1749539182337,795.28,0.00016931,2]
[365216352,1749539185985,495.98,0.00016438,2]
[365216353,1749539186232,495.98,0.00016602,2]
[365216354,1749539186492,495.98,0.00016767,2]
[365216355,1749539186742,495.98,0.00016931,2]
[365216359,1749539193924,490.0,0.00016438,2]
[365216360,1749539194202,490.0,0.00016602,2]
[365216361,1749539194449,490.0,0.00016767,2]
[365216362,1749539194695,490.0,0.00016931,2]
[365216364,1749539201551,500.0,0.00016766,2]
[365216366,1749539207731,500.0,0.00016766,2]
[365216367,1749539215167,186.69,0.00015975,2]
[365216368,1749539215265,490.0,0.00016438,2]
[365216369,1749539215534,490.0,0.00016602,2]
[365216370,1749539215921,490.0,0.00016767,2]
[365216371,1749539216168,490.0,0.00016931,2]
[365216372,1749539219697,253.0,0.0002465,120]
[365216376,1749539227701,759.01,0.00016438,2]
[365216377,1749539227956,759.01,0.00016602,2]
[365216378,1749539228200,759.01,0.00016767,2]
[365216379,1749539228466,759.01,0.00016931,2]
[365216380,1749539235119,673.19,0.00016766,2]
[365216383,1749539248166,705.12,0.00016438,2]
[365216384,1749539248431,705.12,0.00016602,2]
[365216385,1749539248690,705.12,0.00016767,2]
[365216386,1749539248935,705.12,0.00016931,2]
[365216389,1749539255344,77.48562822,0.00016438,2]
[365216390,1749539255369,412.51437178,0.00016438,2]
[365216391,1749539255600,490.0,0.00016602,2]
[365216392,1749539255837,454.94753122,0.00016767,2]
[365216394,1749539279713,217.0,0.0002465,120]
[365216397,1749539298070,500.0,0.00016766,2]
[365216400,1749539309533,802.89,0.00016438,2]
[365216401,1749539309805,802.89,0.00016602,2]
[365216402,1749539310064,802.89,0.00016767,2]
[365216403,1749539310374,802.89,0.00016931,2]
[365216404,1749539313305,440.0,0.00016438,2]
[365216405,1749539314098,753.81,0.00016438,2]
[365216406,1749539314344,753.81,0.00016602,2]
[365216407,1749539314605,753.81,0.00016767,2]
[365216409,1749539314867,753.81,0.00016931,2]
[365216410,1749539316908,490.0,0.00016438,2]
[365216411,1749539317149,490.0,0.00016602,2]
[365216412,1749539317413,490.0,0.00016767,2]
[365216413,1749539317927,490.0,0.00016931,2]
[365216414,1749539321028,490.0,0.00016438,2]
[365216415,1749539321263,490.0,0.00016602,2]
[365216416,1749539321505,490.0,0.00016767,2]
[365216417,1749539321912,490.0,0.00016931,2]
[365216419,1749539335706,490.0,0.00016438,2]
[365216420,1749539335961,220.61182839,0.00016602,2]
[365216421,1749539341761,490.0,0.00016438,2]
[365216422,1749539342014,490.0,0.00016602,2]
[365216423,1749539342280,490.0,0.00016767,2]
[365216424,1749539342529,490.0,0.00016931,2]
[365216425,1749539342717,173.65247198,0.00016931,2]
[365216426,1749539346717,189.0,0.000169,2]
[365216428,1749539351368,490.0,0.00016438,2]
[365216429,1749539351408,189.0,0.000169,2]
[365216430,1749539351641,275.0,0.00015404,2]
[365216431,1749539351675,490.0,0.00016602,2]
[365216432,1749539351924,490.0,0.00016767,2]
[365216433,1749539352289,490.0,0.00016931,2]
[365216436,1749539362802,490.0,0.00016438,2]
[365216437,1749539363050,490.0,0.00016602,2]
[365216438,1749539363649,490.0,0.00016767,2]
[365216439,1749539363787,490.0,0.00016438,2]
[365216440,1749539363900,490.0,0.00016931,2]
[365216441,1749539364046,490.0,0.00016602,2]
[365216442,1749539364656,490.0,0.00016767,2]
[365216443,1749539364925,490.0,0.00016931,2]
[365216444,1749539368796,189.0,0.000169,2]
[365216445,1749539372419,490.0,0.00016438,2]
[365216446,1749539372661,490.0,0.00016602,2]
[365216447,1749539372912,490.0,0.00016767,2]
[365216448,1749539373358,490.0,0.00016931,2]
[365216452,1749539382857,189.0,0.000169,3]
[365216453,1749539384130,189.0,0.000169,3]
[365216454,1749539386878,490.0,0.00016438,2]
[365216455,1749539387111,16.94319663,0.00016602,2]
[365216456,1749539387139,473.05680337,0.00016602,2]
[365216457,1749539387349,490.0,0.00016767,2]
[365216459,1749539387954,490.0,0.00016931,2]
[365216460,1749539389330,250.0,0.00016618,2]
[365216461,1749539390024,490.0,0.00016438,2]
[365216462,1749539390279,490.0,0.00016602,2]
[365216463,1749539390555,490.0,0.00016767,2]
[365216464,1749539390807,490.0,0.00016931,2]
[365216466,1749539395741,490.0,0.00016438,2]
[365216467,1749539396094,490.0,0.00016602,2]
[365216468,1749539396345,490.0,0.00016767,2]
[365216469,1749539396596,490.0,0.00016931,2]
[365216470,1749539397457,662.73,0.00016438,2]
[365216471,1749539397720,662.73,0.00016602,2]
[365216472,1749539397975,662.73,0.00016767,2]
[365216473,1749539398220,662.73,0.00016931,2]
[365216474,1749539400868,490.0,0.00016438,2]
[365216475,1749539401124,490.0,0.00016602,2]
[365216476,1749539401920,490.0,0.00016767,2]
[365216477,1749539402169,490.0,0.00016931,2]
[365216478,1749539407790,609.05,0.00016438,2]
[365216479,1749539408063,609.05,0.00016602,2]
[365216480,1749539408334,609.05,0.00016767,2]
[365216481,1749539408584,609.05,0.00016931,2]
[365216482,1749539408788,490.0,0.00016438,2]
[365216483,1749539409053,490.0,0.00016602,2]
[365216484,1749539409294,490.0,0.00016767,2]
[365216485,1749539409570,490.0,0.00016931,2]
[365216487,1749539411859,200.0,0.00016262,2]
[365216488,1749539412143,200.0,0.00016738,2]
[365216491,1749539431962,-766.38037855,0.00017081,2]
[365216492,1749539431978,-66.91871177,0.00017081,2]
[365216493,1749539431988,-5151.73926302,0.00017088,5]
[365216494,1749539432094,-1892.15975754,0.00017088,5]
[365216495,1749539432104,-1200.0,0.00017093,2]
[365216496,1749539432113,-300.0,0.00017093,2]
[365216497,1749539432122,-300.0,0.00017094,2]
[365216498,1749539432132,-490.0,0.00017095,2]
[365216499,1749539432142,-759.01,0.00017095,2]
[365216500,1749539432151,-705.12,0.00017095,2]
[365216501,1749539432161,-802.89,0.00017095,2]
[365216502,1749539432171,-753.81,0.00017095,2]
[365216503,1749539432180,-490.0,0.00017095,2]
[365216504,1749539432410,-390.80622488,0.00017095,2]
[365216505,1749539432421,-490.0,0.00017095,2]
[365216506,1749539432431,-490.0,0.00017095,2]
[365216508,1749539432440,-490.0,0.00017095,2]
[365216510,1749539432449,-490.0,0.00017095,2]
[365216512,1749539432459,-490.0,0.00017095,2]
[365216514,1749539432468,-622.42206398,0.00017095,2]
[365216517,1749539432477,-490.0,0.00017095,2]
[365216519,1749539432486,-490.0,0.00017095,2]
[365216522,1749539432495,-662.73,0.00017095,2]
[365216525,1749539432504,-490.0,0.00017095,2]
[365216528,1749539432513,-609.05,0.00017095,2]
[365216531,1749539432523,-490.0,0.00017095,2]
[365216534,1749539432533,-461.25,0.00017123,2]
[365216537,1749539432542,-461.25,0.00017123,2]
[365216540,1749539432551,-461.25,0.00017123,2]
[365216543,1749539432560,-461.25,0.00017123,2]
[365216546,1749539432570,-461.25,0.00017123,2]
[365216549,1749539432579,-461.25,0.00017123,2]
[365216552,1749539432589,-461.25,0.00017123,2]
[365216555,1749539432599,-200.0,0.0001716,2]
[365216558,1749539432608,-200.0,0.00017213,3]
[365216561,1749539432618,-152.0,0.00017247,4]
[365216564,1749539432628,-490.0,0.0001726,2]
[365216567,1749539432637,-759.01,0.0001726,2]
[365216570,1749539432647,-705.12,0.0001726,2]
[365216572,1749539432657,-802.89,0.0001726,2]
[365216574,1749539432666,-753.81,0.0001726,2]
[365216577,1749539432676,-490.0,0.0001726,2]
[365216579,1749539432686,-490.0,0.0001726,2]
[365216582,1749539432695,-490.0,0.0001726,2]
[365216585,1749539432704,-490.0,0.0001726,2]
[365216588,1749539432714,-490.0,0.0001726,2]
[365216591,1749539432723,-490.0,0.0001726,2]
[365216593,1749539432732,-490.0,0.0001726,2]
[365216595,1749539432742,-490.0,0.0001726,2]
[365216597,1749539432751,-662.73,0.0001726,2]
[365216599,1749539432760,-490.0,0.0001726,2]
[365216601,1749539432769,-609.05,0.0001726,2]
[365216603,1749539432778,-296.38032453,0.0001726,2]
[365216605,1749539432788,-168.0,0.00017267,2]
[365216607,1749539432797,-1000.0,0.00017332,2]
[365216608,1749539432807,-1393.599304,0.00017349,2]
[365216610,1749539432816,-496.93,0.000174,2]
[365216612,1749539432826,-207.4,0.00017414,2]
[365216614,1749539432835,-1957.856,0.00017414,2]
[365216616,1749539432845,-174.63835223,0.00017422,2]
[365216618,1749539432855,-151.0,0.00017424,2]
[365216620,1749539432864,-151.0,0.00017424,2]
[365216622,1749539432874,-151.0,0.00017424,2]
[365216624,1749539432883,-151.0,0.00017424,2]
[365216626,1749539432893,-151.0,0.00017424,2]
[365216628,1749539432903,-151.0,0.00017424,2]
[365216630,1749539432912,-151.0,0.00017424,2]
[365216632,1749539432921,-216.558878,0.00017424,2]
[365216633,1749539432931,-182.596802,0.00017424,2]
[365216635,1749539432940,-182.596802,0.00017424,2]
[365216637,1749539432950,-200.52306348,0.00017424,2]
[365216639,1749539432960,-759.01,0.00017424,2]
[365216641,1749539432970,-705.12,0.00017424,2]
[365216643,1749539432984,-802.89,0.00017424,2]
[365216646,1749539432994,-753.81,0.00017424,2]
[365216647,1749539433003,-490.0,0.00017424,2]
[365216649,1749539433014,-490.0,0.00017424,2]
[365216651,1749539433024,-490.0,0.00017424,2]
[365216653,1749539433033,-490.0,0.00017424,2]
[365216655,1749539433043,-490.0,0.00017424,2]
[365216657,1749539433053,-490.0,0.00017424,2]
[365216659,1749539433062,-490.0,0.00017424,2]
[365216661,1749539433072,-320.09,0.00017424,2]
[365216663,1749539433081,-662.73,0.00017424,2]
[365216665,1749539433091,-490.0,0.00017424,2]
[365216667,1749539433100,-609.05,0.00017424,2]
[365216669,1749539433109,-10361.06212689,0.00017478,2]
[365216671,1749539433118,-152.39864102,0.00017479,2]
[365216673,1749539433128,-461.25,0.00017488,2]
[365216675,1749539433138,-416.14,0.00017488,2]
[365216677,1749539433149,-461.18,0.00017488,2]
[365216679,1749539433158,-461.18,0.00017488,2]
[365216681,1749539433167,-461.18,0.00017488,2]
[365216683,1749539433177,-461.18,0.00017488,2]
[365216685,1749539433187,-454.65,0.00017488,2]
[365216687,1749539433198,-3000.0,0.000175,2]
[365216689,1749539433207,-300.0,0.000175,2]
[365216691,1749539433217,-150.55,0.000175,2]
[365216693,1749539433226,-150.5,0.000175,2]
[365216695,1749539433235,-150.163,0.00017522,2]
[365216697,1749539433245,-150.0,0.00017522,2]
[365216699,1749539433256,-150.056,0.00017522,2]
[365216701,1749539433265,-150.261,0.00017522,2]
[365216703,1749539433275,-151.0,0.00017559,2]
[365216705,1749539433284,-152.39864102,0.00017562,2]
[365216707,1749539433294,-945.0,0.00017569,2]
[365216709,1749539433304,-802.0,0.00017569,2]
[365216711,1749539433313,-637.0,0.00017569,2]
[365216713,1749539433322,-927.0,0.00017569,2]
[365216715,1749539433331,-558.0,0.00017569,2]
[365216717,1749539433341,-2001.0,0.00017569,2]
[365216719,1749539433351,-1275.0,0.00017569,2]
[365216721,1749539433361,-590.0,0.00017569,2]
[365216723,1749539433371,-1256.0,0.00017569,2]
[365216725,1749539433381,-5000.0,0.00017573,2]
[365216727,1749539433391,-759.01,0.00017589,2]
[365216729,1749539433401,-705.12,0.00017589,2]
[365216731,1749539433411,-802.89,0.00017589,2]
[365216733,1749539433421,-753.81,0.00017589,2]
[365216735,1749539433430,-490.0,0.00017589,2]
[365216737,1749539433440,-490.0,0.00017589,2]
[365216739,1749539433449,-490.0,0.00017589,2]
[365216741,1749539433459,-490.0,0.00017589,2]
[365216743,1749539433468,-490.0,0.00017589,2]
[365216745,1749539433478,-490.0,0.00017589,2]
[365216747,1749539433487,-336.81956897,0.00017589,2]
[365216749,1749539433496,-662.73,0.00017589,2]
[365216751,1749539433506,-490.0,0.00017589,2]
[365216753,1749539433516,-609.05,0.00017589,2]
[365216755,1749539433525,-3885.85091202,0.00017604,2]
[365216757,1749539433535,-150.0,0.00017616,2]
[365216759,1749539433544,-150.117,0.00017616,2]
[365216761,1749539433554,-3330.0,0.00017616,2]
[365216763,1749539433563,-1159.0,0.00017671,2]
[365216765,1749539433572,-152.39864102,0.00017671,2]
[365216767,1749539433583,-155.0,0.00017671,2]
[365216769,1749539433593,-4085.0,0.00017671,2]
[365216771,1749539433602,-7064.0,0.00017671,2]
[365216773,1749539433612,-351.7,0.00017672,2]
[365216775,1749539433621,-354.51,0.00017673,2]
[365216777,1749539433632,-360.39,0.00017673,2]
[365216779,1749539433642,-354.46,0.00017673,2]
[365216781,1749539433652,-708.8,0.00017673,2]
[365216783,1749539433662,-354.46,0.00017673,2]
[365216785,1749539433672,-354.46,0.00017673,2]
[365216787,1749539433682,-354.46,0.00017673,2]
[365216789,1749539433692,-354.46,0.00017673,2]
[365216791,1749539433702,-354.46,0.00017673,2]
[365216793,1749539433711,-354.46,0.00017673,2]
[365216795,1749539433721,-354.46,0.00017673,2]
[365216797,1749539433731,-753.358,0.00017673,2]
[365216799,1749539433741,-200.0,0.00017688,3]
[365216801,1749539433750,-9158.48,0.000177,2]
[365216803,1749539433760,-500.0,0.00017704,2]
[365216805,1749539433770,-200.0,0.00017704,2]
[365216807,1749539433779,-1000.0,0.00017704,2]
[365216809,1749539433789,-1000.0,0.00017704,2]
[365216810,1749539433799,-1000.0,0.00017704,2]
[365216812,1749539433808,-1000.0,0.00017704,2]
[365216814,1749539433818,-1000.0,0.00017704,2]
[365216816,1749539433828,-1000.0,0.00017704,2]
[365216818,1749539433837,-1000.0,0.00017704,2]
[365216820,1749539433847,-1000.0,0.00017704,2]
[365216822,1749539433857,-1000.0,0.00017704,2]
[365216824,1749539433866,-1000.0,0.00017704,2]
[365216826,1749539433876,-1000.0,0.00017704,2]
[365216828,1749539433886,-1000.0,0.00017704,2]
[365216830,1749539433896,-1000.0,0.00017704,2]
[365216832,1749539433907,-1000.0,0.00017704,2]
[365216834,1749539433916,-1000.0,0.00017704,2]
[365216836,1749539433926,-1000.0,0.00017704,2]
[365216838,1749539433936,-1000.0,0.00017704,2]
[365216840,1749539433945,-1000.0,0.00017704,2]
[365216843,1749539433961,-1000.0,0.00017704,2]
[365216845,1749539433977,-1000.0,0.00017704,2]
[365216847,1749539433987,-1000.0,0.00017704,2]
[365216849,1749539433997,-1000.0,0.00017704,2]
[365216851,1749539434008,-1000.0,0.00017704,2]
[365216853,1749539434018,-1000.0,0.00017704,2]
[365216855,1749539434028,-1000.0,0.00017704,2]
[365216857,1749539434038,-1000.0,0.00017704,2]
[365216859,1749539434049,-1000.0,0.00017704,2]
[365216861,1749539434059,-1000.0,0.00017704,2]
[365216863,1749539434069,-1000.0,0.00017704,2]
[365216865,1749539434079,-1000.0,0.00017704,2]
[365216867,1749539434088,-1000.0,0.00017704,2]
[365216869,1749539434098,-1000.0,0.00017704,2]
[365216871,1749539434107,-1000.0,0.00017704,2]
[365216872,1749539434116,-1000.0,0.00017704,2]
[365216873,1749539434126,-622.3471054,0.00017704,2]
[365216874,1749539434135,-183.02721515,0.00017704,2]
[365216875,1749539434144,-500.0,0.00017704,2]
[365216876,1749539434154,-208.38296638,0.00017704,2]
[365216877,1749539434164,-514.30454927,0.00017711,2]
[365216878,1749539434174,-1397.0,0.0001772,2]
[365216879,1749539434183,-223.59766933,0.00017725,2]
[365216880,1749539434193,-3885.85091196,0.00017726,2]
[365216881,1749539434202,-759.01,0.00017753,2]
[365216882,1749539434213,-705.12,0.00017753,2]
[365216883,1749539434223,-802.89,0.00017753,2]
[365216884,1749539434232,-753.81,0.00017753,2]
[365216885,1749539434242,-490.0,0.00017753,2]
[365216886,1749539434252,-490.0,0.00017753,2]
[365216887,1749539434262,-490.0,0.00017753,2]
[365216888,1749539434272,-490.0,0.00017753,2]
[365216889,1749539434281,-490.0,0.00017753,2]
[365216890,1749539434290,-490.0,0.00017753,2]
[365216891,1749539434299,-662.73,0.00017753,2]
[365216892,1749539434309,-490.0,0.00017753,2]
[365216894,1749539434319,-609.05,0.00017753,2]
[365216896,1749539434329,-285.347773,0.00017759,2]
[365216898,1749539434339,-285.347773,0.00017759,2]
[365216900,1749539434348,-200.0,0.00017762,2]
[365216902,1749539434358,-200.0,0.00017762,2]
[365216904,1749539434368,-200.0,0.00017764,2]
[365216906,1749539434378,-4106.31120003,0.00017765,2]
[365216908,1749539434387,-1462.43893973,0.00017765,2]
[365216910,1749539434398,-282.48669926,0.00017768,2]
[365216912,1749539434408,-200.0,0.00017769,2]
[365216914,1749539434417,-200.0,0.00017773,2]
[365216916,1749539434427,-637.66539225,0.00017773,2]
[365216918,1749539434437,-500.0,0.00017773,2]
[365216920,1749539434446,-152.39864102,0.00017781,2]
[365216922,1749539434456,-200.0,0.00017783,2]
[365216924,1749539434466,-200.0,0.00017795,2]
[365216926,1749539434476,-1462.43893973,0.00017797,2]
[365216928,1749539434485,-200.0,0.00017799,2]
[365216930,1749539434495,-1000.0,0.00017799,2]
[365216932,1749539434505,-500.0,0.00017799,2]
[365216934,1749539434516,-500.0,0.00017799,2]
[365216936,1749539434526,-251.05753186,0.00017799,2]
[365216938,1749539434536,-384.13833557,0.00017799,2]
[365216940,1749539434546,-177.04355217,0.00017799,2]
[365216942,1749539434556,-673.19,0.00017799,2]
[365216944,1749539434566,-500.0,0.00017799,2]
[365216946,1749539434575,-1000.0,0.000178,4]
[365216948,1749539434585,-1802.73844245,0.000178,3]
[365216950,1749539434595,-104175.74345093,0.000178,2]
[365216952,1749539434605,-164.73544592,0.000178,2]
[365216954,1749539434616,-500.0,0.000178,6]
[365216956,1749539434627,-200.0,0.00017806,2]
[365216958,1749539434637,-500.0,0.00017808,2]
[365216960,1749539434647,-500.0,0.00017808,2]
[365216962,1749539434658,-500.0,0.00017808,2]
[365216964,1749539434668,-500.0,0.00017808,2]
[365216966,1749539434678,-500.0,0.00017808,2]
[365216968,1749539434688,-500.0,0.00017808,2]
[365216970,1749539434700,-500.0,0.00017808,2]
[365216972,1749539434710,-500.0,0.00017808,2]
[365216974,1749539434721,-500.0,0.00017808,2]
[365216976,1749539434733,-500.0,0.00017808,2]
[365216978,1749539434743,-500.0,0.00017808,2]
[365216980,1749539434754,-500.0,0.00017808,2]
[365216982,1749539434764,-500.0,0.00017808,2]
[365216984,1749539434773,-500.0,0.00017808,2]
[365216986,1749539434783,-500.0,0.00017808,2]
[365216988,1749539434793,-500.0,0.00017808,2]
[365216990,1749539434803,-500.0,0.00017808,2]
[365216992,1749539434813,-276.32915112,0.00017808,2]
[365216994,1749539434823,-500.0,0.00017808,2]
[365216996,1749539434834,-500.0,0.00017808,2]
[365216998,1749539434844,-500.0,0.00017808,2]
[365217000,1749539434854,-500.0,0.00017808,2]
[365217002,1749539434864,-500.0,0.00017808,2]
[365217004,1749539434875,-500.0,0.00017808,2]
[365217006,1749539434885,-500.0,0.00017808,2]
[365217008,1749539434895,-500.0,0.00017808,2]
[365217010,1749539434904,-293.43040578,0.00017808,2]
[365217012,1749539434913,-150.0,0.00017808,2]
[365217014,1749539434923,-4642.23671432,0.00017808,2]
[365217016,1749539434933,-200.0,0.0001781,2]
[365217019,1749539434944,-1462.43893973,0.00017815,2]
[365217020,1749539434954,-152.0,0.00017817,5]
[365217022,1749539434966,-200.0,0.00017828,2]
[365217025,1749539434978,-4106.31120003,0.00017829,2]
[365217027,1749539434989,-200.0,0.00017829,2]
[365217028,1749539434999,-4642.23671432,0.00017829,2]
[365217030,1749539435009,-209.0,0.0001783,2]